bitfinex-derivatives/quotes_SOLF0:USTF0_20230102
["timestamp","ask_amount","ask_price","bid_price","bid_amount"]
[1672662884156,5.0,11.124,11.117,9.01]
[1672662884576,14.05,11.124,11.116,0.11960182]
[1672662885629,9.05,11.124,11.116,0.11960182]
[1672662890038,5.0,11.122,11.116,0.11960182]
[1672662891721,58.0442,11.123,11.116,0.11960182]
[1672662891930,53.0442,11.123,11.116,0.11960182]
[1672662895814,9.01,11.126,11.116,0.11960182]
[1672662896030,5.0,11.125,11.12,8.98]
[1672662897083,5.0,11.126,11.12,8.98]
[1672662899077,54.1267,11.127,11.12,8.98]
[1672662899601,9.05,11.121,11.111,8.98]
[1672662899807,50.0,11.124,11.111,8.98]
[1672662899808,9.05,11.119,11.111,8.98]
[1672662900021,5.0,11.118,11.111,8.98]
[1672662900443,9.05,11.121,11.112,8.98]
[1672662900864,5.0,11.12,11.112,8.98]
[1672662901280,14.02,11.128,11.119,9.01]
[1672662901492,48.7548,11.127,11.119,9.01]
[1672662901703,5.0,11.126,11.119,9.01]
[1672662902332,48.7548,11.127,11.119,9.01]
[1672662902542,48.7548,11.127,11.122,9.05]
[1672662904129,9.05,11.131,11.122,9.05]
[1672662904438,9.05,11.131,11.114,5.0]
[1672662904439,5.0,11.13,11.127,9.01]
[1672662904859,53.5433,11.131,11.127,9.01]
[1672662905491,8.99,11.141,11.13,8.93]
[1672662905804,5.0,11.137,11.131,13.98]
[1672662906015,5.0,11.137,11.13,8.99]
[1672662906226,58.5433,11.137,11.13,8.99]
[1672662906645,53.5433,11.137,11.13,8.99]
[1672662907169,8.91,11.141,11.132,8.97]
[1672662907380,67.25,11.152,11.14,8.95]
[1672662907591,5.0,11.151,11.143,8.95]
[1672662907804,5.0,11.151,11.13,50.0]
[1672662907805,50.0,11.145,11.125,67.42]
[1672662908013,50.0,11.145,11.123,8.94]
[1672662908014,5.0,11.144,11.126,5.0]
[1672662908224,21.494514,11.144,11.126,8.29999994]
[1672662908751,16.494514,11.143,11.126,5.0]
[1672662908964,16.494514,11.143,11.123,8.94]
[1672662908965,8.91,11.139,11.131,8.93]
[1672662909484,8.92,11.141,11.132,8.99]
[1672662909696,8.91,11.144,11.135,8.93]
[1672662910432,5.0,11.142,11.135,8.93]
[1672662911164,8.91,11.144,11.135,8.93]
[1672662911799,5.0,11.142,11.135,8.93]
[1672662912319,8.97,11.141,11.132,8.99]
[1672662912534,8.91,11.138,11.129,8.98]
[1672662912849,5.0,11.137,11.129,8.98]
[1672662913481,8.91,11.139,11.131,8.97]
[1672662913686,5.0,11.138,11.131,8.97]
[1672662914426,13.91,11.141,11.132,8.93]
[1672662915265,8.91,11.141,11.132,8.93]
[1672662916625,0.11962222,11.141,11.131,8.98]
[1672662916835,5.11962222,11.141,11.131,8.98]
[1672662918736,0.11962222,11.141,11.134,8.98]
[1672662919156,0.11962222,11.141,11.137,8.98]
[1672662919890,0.11962222,11.141,11.135,8.98]
[1672662921150,0.11962222,11.141,11.127,0.11936763]
[1672662921151,14.09962222,11.141,11.13,8.93]
[1672662924519,9.09962222,11.141,11.13,8.93]
[1672662925459,9.09962222,11.141,11.131,8.98]
[1672662926202,0.11962222,11.141,11.133,8.98]
[1672662930510,50.1499,11.142,11.133,8.98]
[1672662930723,50.1499,11.142,11.134,8.98]
[1672662930928,50.1499,11.142,11.135,5.0]
[1672662931244,50.1499,11.142,11.134,8.98]
[1672662934186,50.1499,11.142,11.132,8.98]
[1672662934394,59.0999,11.142,11.131,8.93]
[1672662934606,57.8685,11.141,11.131,8.93]
[1672662934820,5.0,11.14,11.131,8.93]
[1672662935443,57.8685,11.141,11.131,8.93]
[1672662935444,52.8685,11.141,11.131,8.93]
[1672662935761,0.11919427,11.145,11.135,8.98]
[1672662935967,50.6265,11.143,11.136,0.11982704]
[1672662936181,5.0,11.142,11.136,0.11982704]
[1672662938488,50.6265,11.143,11.136,0.11982704]
[1672662945849,50.6265,11.143,11.135,8.98]
[1672662946478,50.6265,11.143,11.137,8.98]
[1672662950265,0.11910798,11.147,11.14,8.98]
[1672662950473,53.9003,11.148,11.141,8.98]
[1672662950683,5.0,11.147,11.141,8.98]
[1672662951832,13.98,11.147,11.138,8.98]
[1672662954043,8.98,11.147,11.138,8.98]
[1672662956253,5.0,11.144,11.137,8.98]
[1672662956670,8.98,11.145,11.137,8.98]
[1672662956883,14.09910798,11.147,11.138,8.98]
[1672662957095,5.0,11.145,11.138,8.98]
[1672662958251,51.8962,11.146,11.138,8.98]
[1672662959200,5.0,11.145,11.138,8.98]
[1672662959721,13.98,11.145,11.137,8.98]
[1672662961716,8.98,11.141,11.133,0.00974884]
[1672662961931,8.91,11.137,11.128,8.97]
[1672662962244,5.0,11.136,11.128,8.97]
[1672662962559,13.98,11.14,11.131,8.98]
[1672662962765,50.51991684,11.144,11.133,8.98]
[1672662962766,0.11921684,11.139,11.133,8.98]
[1672662962979,5.11921684,11.143,11.137,8.95]
[1672662963608,0.11921684,11.143,11.137,8.95]
[1672662964134,5.11921684,11.143,11.135,8.98]
[1672662964343,0.11921684,11.143,11.137,8.98]
[1672662967814,5.0,11.15,11.132,5.0]
[1672662967815,5.0,11.149,11.141,8.98]
[1672662968024,56.8727,11.149,11.141,8.98]
[1672662968232,5.0,11.148,11.141,8.98]
[1672662968860,56.8727,11.149,11.141,8.98]
[1672662969070,51.8727,11.149,11.141,8.98]
[1672662972752,51.8727,11.149,11.143,8.95]
[1672662972963,51.8727,11.149,11.142,8.97]
[1672662973278,8.98,11.148,11.14,8.95]
[1672662973486,5.0,11.147,11.14,8.95]
[1672662973907,51.8727,11.149,11.143,8.95]
[1672662974117,8.98,11.153,11.144,8.98]
[1672662974326,57.5911,11.152,11.144,8.98]
[1672662974539,8.98,11.15,11.142,8.97]
[1672662974853,5.0,11.149,11.142,8.97]
[1672662975170,8.98,11.145,11.131,50.0]
[1672662975372,5.0,11.144,11.137,8.98]
[1672662975693,13.98,11.149,11.14,8.95]
[1672662977585,8.98,11.147,11.139,8.98]
[1672662977901,5.0,11.146,11.139,8.98]
[1672662978321,58.0489,11.146,11.139,8.98]
[1672662978949,0.1196786,11.152,11.143,8.98]
[1672662979156,8.91,11.152,11.143,8.98]
[1672662979371,8.98,11.15,11.142,8.98]
[1672662979581,5.0,11.149,11.142,8.98]
[1672662980317,13.98,11.149,11.14,8.98]
[1672662980530,8.98,11.147,11.139,8.98]
[1672662980836,5.0,11.146,11.139,8.98]
[1672662982523,8.98,11.147,11.139,8.98]
[1672662982732,50.686,11.148,11.142,8.98]
[1672662984209,59.666,11.148,11.14,8.95]
[1672662989358,59.58649512,11.148,11.14,8.95]
[1672662989986,13.98,11.147,11.139,8.98]
[1672662990304,13.98,11.147,11.136,8.95]
[1672662990305,8.98,11.144,11.136,8.95]
[1672662991036,5.0,11.143,11.136,8.95]
[1672662991672,8.98,11.144,11.136,8.95]
[1672662992826,13.98,11.146,11.138,8.98]
[1672662993037,8.98,11.146,11.138,8.98]
[1672662993879,8.98,11.145,11.136,8.95]
[1672662995033,51.6539,11.144,11.136,8.95]
[1672662995241,5.0,11.143,11.136,8.95]
[1672662997452,56.6539,11.144,11.136,8.95]
[1672662999762,13.98,11.143,11.135,8.98]
[1672663002075,8.98,11.143,11.135,8.98]
[1672663005231,8.91,11.141,11.133,8.97]
[1672663005443,5.0,11.14,11.133,8.97]
[1672663006283,8.91,11.141,11.133,8.97]
[1672663009228,49.7072,11.143,11.136,8.98]
[1672663009437,0.1194172,11.142,11.136,8.98]
[1672663009647,5.1194172,11.142,11.136,8.98]
[1672663009859,0.1194172,11.142,11.137,8.97]
[1672663018682,0.1194172,11.142,11.131,50.0]
[1672663018683,8.98,11.14,11.129,0.11915818]
[1672663018891,5.1194172,11.139,11.132,8.95]
[1672663019103,5.1194172,11.139,11.133,8.98]
[1672663019419,0.1194172,11.139,11.134,8.98]
[1672663019733,0.1194172,11.141,11.134,8.98]
[1672663023729,8.98,11.143,11.134,8.98]
[1672663034972,59.0469,11.145,11.137,8.91]
[1672663036337,5.0,11.144,11.137,8.69976718]
[1672663036548,5.0,11.144,11.137,8.98]
[1672663037281,59.0469,11.145,11.137,8.98]
[1672663037487,0.11999753,11.146,11.14,8.98]
[1672663037695,59.3377,11.148,11.14,8.98]
[1672663040428,5.0,11.147,11.14,8.98]
[1672663042327,59.3377,11.148,11.14,8.98]
[1672663044216,5.0,11.147,11.14,8.98]
[1672663045897,59.3377,11.148,11.14,8.98]
[1672663046315,5.0,11.147,11.14,8.98]
[1672663047369,59.3377,11.148,11.14,8.98]
[1672663048105,5.0,11.147,11.14,8.98]
[1672663049358,5.0,11.144,11.137,8.98]
[1672663051044,8.93,11.145,11.137,8.98]
[1672663051253,50.3336,11.144,11.137,8.98]
[1672663051458,5.0,11.143,11.137,8.98]
[1672663052516,55.3336,11.144,11.137,8.98]
[1672663054297,50.3336,11.144,11.137,8.98]
[1672663080682,50.3336,11.144,11.14,8.98]
[1672663082255,0.11945126,11.148,11.138,8.91]
[1672663082472,59.40285126,11.148,11.14,8.98]
[1672663082785,50.3934,11.148,11.141,8.91]
[1672663094659,50.2982395,11.148,11.141,8.91]
[1672663095395,8.93,11.146,11.138,8.98]
[1672663095710,5.0,11.145,11.138,8.98]
[1672663098125,8.93,11.146,11.138,8.98]
[1672663100229,5.0,11.145,11.138,8.98]
[1672663100857,8.93,11.146,11.138,8.98]
[1672663104956,50.2982395,11.148,11.134,0.11973222]
[1672663104957,59.2282395,11.148,11.14,8.98]
[1672663114734,50.2982395,11.148,11.142,8.93]
[1672663117986,50.2982395,11.148,11.14,8.98]
[1672663118725,5.0,11.147,11.14,8.78449975]
[1672663118936,13.93,11.147,11.139,8.98]
[1672663121136,8.93,11.147,11.139,8.98]
[1672663123241,5.0,11.146,11.139,8.98]
[1672663124821,13.93,11.147,11.139,8.98]
[1672663125026,8.93,11.147,11.139,8.98]
[1672663125452,50.2982395,11.148,11.141,8.98]
[1672663146886,8.9,11.15,11.148,0.10389125]
[1672663147092,5.11948739,11.152,11.148,0.10389125]
[1672663147718,0.11948739,11.152,11.148,0.10389125]
[1672663151926,50.0,11.164,11.148,0.10389125]
[1672663151927,8.93,11.169,11.152,8.98]
[1672663152140,67.14,11.171,11.159,8.91]
[1672663152141,13.93,11.168,11.159,8.91]
[1672663152353,13.93,11.168,11.16,0.1199324]
[1672663152559,5.0,11.167,11.163,8.98]
[1672663152763,5.0,11.18,11.166,8.98]
[1672663152976,8.97,11.175,11.166,8.98]
[1672663153402,8.92,11.176,11.168,8.98]
[1672663153612,50.0,11.174,11.166,8.98]
[1672663153823,8.92,11.172,11.163,8.91]
[1672663154027,5.0,11.173,11.166,8.91]
[1672663154244,16.46152003,11.171,11.166,8.91]
[1672663154450,16.46152003,11.171,11.169,8.98]
[1672663154660,49.5914,11.175,11.169,8.98]
[1672663155186,8.93,11.221,11.174,44.9]
[1672663155397,53.8054,11.209,11.191,50.0]
[1672663155602,5.0,11.208,11.201,8.98]
[1672663155809,21.41412041,11.208,11.199,8.98]
[1672663156023,8.97,11.2,11.193,0.1199324]
[1672663156236,5.0,11.203,11.19,0.1199324]
[1672663156447,16.41412041,11.199,11.183,5.0]
[1672663156658,5.0,11.198,11.184,0.1199324]
[1672663156862,5.0,11.198,11.182,0.1199324]
[1672663157078,8.93,11.196,11.187,8.98]
[1672663157289,5.0,11.198,11.183,0.1199324]
[1672663157605,8.93,11.189,11.18,8.98]
[1672663157920,5.0,11.183,11.173,3.28605031]
[1672663158128,8.93,11.18,11.167,5.0]
[1672663158334,5.0,11.179,11.17,8.98]
[1672663158546,5.0,11.177,11.169,8.98]
[1672663158761,13.9,11.177,11.168,8.91]
[1672663158967,8.9,11.174,11.165,8.98]
[1672663159178,8.9,11.171,11.162,8.91]
[1672663159389,13.9,11.171,11.162,8.91]
[1672663159918,5.0,11.17,11.162,8.91]
[1672663160550,8.89,11.169,11.16,8.93]
[1672663160763,5.0,11.168,11.16,8.93]
[1672663161284,8.89,11.169,11.16,8.93]
[1672663161496,8.92,11.172,11.163,8.93]
[1672663161698,8.92,11.176,11.165,13.93]
[1672663161907,5.0,11.175,11.165,13.93]
[1672663162116,5.0,11.175,11.165,8.93]
[1672663162859,13.93,11.175,11.165,8.93]
[1672663163911,8.93,11.17,11.162,0.11974255]
[1672663164117,8.93,11.17,11.16,0.11974255]
[1672663164429,50.0,11.174,11.16,0.11974255]
[1672663164430,8.93,11.172,11.161,8.93]
[1672663164645,5.0,11.171,11.161,8.93]
[1672663165698,8.86,11.17,11.161,8.93]
[1672663166015,5.0,11.169,11.161,8.93]
[1672663166846,8.93,11.172,11.161,8.93]
[1672663167058,8.86,11.174,11.163,8.86]
[1672663167268,0.11989576,11.176,11.168,8.86]
[1672663167484,0.11989576,11.176,11.17,8.93]
[1672663168115,0.11989576,11.176,11.167,8.93]
[1672663168322,5.0,11.173,11.164,8.86]
[1672663168954,5.0,11.173,11.163,8.93]
[1672663169159,5.0,11.171,11.163,8.93]
[1672663171063,5.0,11.171,11.156,0.11974255]
[1672663171064,13.92,11.171,11.16,8.86]
[1672663171693,8.93,11.17,11.158,8.93]
[1672663171903,5.0,11.169,11.158,8.93]
[1672663173269,5.0,11.169,11.16,8.84]
[1672663174639,5.0,11.169,11.158,8.93]
[1672663175057,8.72278018,11.168,11.157,8.93]
[1672663175264,13.93,11.167,11.156,0.11974255]
[1672663175589,8.93,11.164,11.156,0.11974255]
[1672663175898,8.93,11.162,11.152,8.86]
[1672663176107,8.93,11.159,11.15,0.11974255]
[1672663176845,5.0,11.161,11.151,8.93]
[1672663177055,13.92,11.161,11.15,0.11974255]
[1672663177368,8.93,11.159,11.15,0.11974255]
[1672663177580,5.0,11.158,11.15,0.11974255]
[1672663178309,5.0,11.158,11.149,8.86]
[1672663178941,63.25512153,11.161,11.149,8.86]
[1672663179152,54.33512153,11.161,11.151,8.93]
[1672663179363,63.26512153,11.161,11.149,8.93]
[1672663181570,8.86,11.159,11.148,9.03389125]
[1672663181781,5.0,11.158,11.148,9.03389125]
[1672663182939,8.86,11.159,11.148,9.03389125]
[1672663183250,8.86,11.159,11.149,8.84]
[1672663185142,8.86,11.159,11.148,9.03389125]
[1672663196594,60.9293,11.159,11.148,9.03389125]
[1672663197009,5.0,11.158,11.148,8.93]
[1672663198377,5.0,11.158,11.133,67.37]
[1672663198597,8.93,11.151,11.14,8.93]
[1672663199115,5.0,11.15,11.14,8.93]
[1672663200065,53.1305,11.157,11.149,8.93]
[1672663200378,53.2502487,11.156,11.149,8.93]
[1672663200691,5.0,11.155,11.149,8.93]
[1672663201106,5.0,11.155,11.146,8.93]
[1672663201532,55.0,11.155,11.146,8.93]
[1672663201846,5.0,11.153,11.143,8.93]
[1672663205418,67.3752,11.154,11.143,8.93]
[1672663207102,5.0,11.153,11.143,8.93]
[1672663207836,53.4452,11.154,11.146,8.86]
[1672663212879,5.0,11.153,11.146,8.86]
[1672663213198,5.0,11.153,11.144,8.93]
[1672663213405,52.5493,11.152,11.142,8.93]
[1672663213719,5.0,11.151,11.142,8.93]
[1672663214142,52.5493,11.152,11.142,8.93]
[1672663214347,52.5493,11.152,11.144,8.84]
[1672663214562,5.0,11.151,11.142,8.86]
[1672663217497,66.4793,11.152,11.142,8.86]
[1672663217814,5.0,11.151,11.142,8.86]
[1672663218132,13.92,11.151,11.14,8.93]
[1672663218342,63.2717,11.151,11.14,8.93]
[1672663219076,63.2717,11.151,11.138,8.93]
[1672663219294,8.93,11.148,11.137,8.93]
[1672663219500,5.0,11.147,11.139,3.29638567]
[1672663220029,5.0,11.147,11.138,3.29638567]
[1672663220865,57.3715,11.147,11.138,3.29638567]
[1672663223598,58.93,11.145,11.138,3.29638567]
[1672663223810,5.0,11.144,11.138,3.29638567]
[1672663224015,5.0,11.144,11.134,8.93]
[1672663224223,58.8469,11.144,11.134,8.93]
[1672663224437,58.8469,11.144,11.136,8.84]
[1672663225066,53.8469,11.144,11.133,50.0]
[1672663225281,8.92,11.141,11.124,67.42]
[1672663225594,13.93,11.14,11.13,8.93]
[1672663226019,5.0,11.139,11.13,8.93]
[1672663226436,5.0,11.139,11.131,3.29872221]
[1672663227908,13.93,11.14,11.131,3.29872221]
[1672663230225,5.0,11.14,11.131,3.29872221]
[1672663230854,64.9969,11.14,11.131,3.29872221]
[1672663231072,8.86,11.138,11.131,3.29872221]
[1672663231281,5.0,11.137,11.127,8.84]
[1672663231697,5.0,11.137,11.128,3.29878535]
[1672663232857,53.7065,11.137,11.128,3.29878535]
[1672663233174,53.7065,11.137,11.127,3.29878535]
[1672663233380,5.0,11.135,11.127,3.29878535]
[1672663233591,5.0,11.133,11.127,3.29878535]
[1672663234012,5.0,11.133,11.125,3.29878535]
[1672663234536,5.0,11.135,11.125,3.29878535]
[1672663235799,8.93,11.133,11.121,8.84]
[1672663236010,5.0,11.132,11.121,8.84]
[1672663236226,5.0,11.132,11.122,3.30070893]
[1672663242101,5.0,11.132,11.123,8.93]
[1672663242313,5.0,11.133,11.123,8.93]
[1672663242730,48.7186,11.134,11.126,8.93]
[1672663243146,48.7186,11.134,11.127,3.2991271]
[1672663243891,5.0,11.133,11.123,8.93]
[1672663244096,5.0,11.133,11.115,5.0]
[1672663244415,5.0,11.133,11.123,8.84]
[1672663245043,57.6486,11.134,11.123,8.84]
[1672663245253,5.0,11.138,11.123,8.84]
[1672663245254,0.11990016,11.136,11.127,8.93]
[1672663245467,5.11990016,11.136,11.127,8.93]
[1672663245889,5.11990016,11.136,11.128,3.29935701]
[1672663247778,0.11990016,11.136,11.128,3.29935701]
[1672663248519,0.11990016,11.136,11.129,8.93]
[1672663249466,0.11990016,11.136,11.13,3.29894897]
[1672663249668,0.11990016,11.136,11.133,8.93]
[1672663250088,5.0,11.135,11.132,8.84]
[1672663250510,0.11990016,11.136,11.132,8.84]
[1672663251877,54.5328,11.142,11.134,8.93]
[1672663252611,49.5328,11.142,11.134,8.93]
[1672663253032,5.0,11.145,11.134,8.93]
[1672663253551,13.86,11.145,11.135,3.29726451]
[1672663253969,13.86,11.145,11.134,8.93]
[1672663254925,8.93,11.144,11.133,8.93]
[1672663255127,5.0,11.143,11.133,8.93]
[1672663258284,49.6338,11.144,11.134,8.86]
[1672663258599,0.11895683,11.143,11.135,13.84]
[1672663259018,0.11895683,11.143,11.136,3.29723691]
[1672663260596,5.11895683,11.143,11.136,3.29723691]
[1672663261325,0.11895683,11.143,11.136,3.29723691]
[1672663261749,5.11895683,11.143,11.136,3.29723691]
[1672663263014,0.11895683,11.143,11.136,3.29723691]
[1672663263432,0.11895683,11.143,11.134,3.29723691]
[1672663263853,0.11895683,11.143,11.135,8.84]
[1672663264066,0.11895683,11.143,11.136,5.0]
[1672663264274,0.11895683,11.143,11.136,8.29723691]
[1672663264479,0.11895683,11.143,11.136,3.29723691]
[1672663265224,0.11895683,11.143,11.136,12.22723691]
[1672663265644,0.11895683,11.143,11.137,3.29723691]
[1672663266273,49.6338,11.144,11.143,0.07628122]
[1672663286039,8.92,11.149,11.143,0.07628122]
[1672663286258,50.1036,11.148,11.144,8.86]
[1672663286564,5.0,11.147,11.144,8.86]
[1672663286776,5.0,11.153,11.144,8.86]
[1672663292552,8.92,11.152,11.143,0.07628122]
[1672663292764,5.0,11.151,11.143,0.07628122]
[1672663294233,8.93,11.15,11.143,0.07628122]
[1672663294547,5.0,11.149,11.143,8.122e-05]
[1672663295077,5.0,11.149,11.139,8.93]
[1672663296441,13.97,11.149,11.141,8.91]
[1672663300744,8.97,11.147,11.139,8.89]
[1672663300955,8.97,11.143,11.135,0.11987339]
[1672663301169,5.0,11.142,11.134,8.93]
[1672663302009,8.97,11.141,11.133,8.89]
[1672663302219,5.0,11.14,11.133,8.89]
[1672663304426,13.93,11.14,11.131,8.97]
[1672663304954,13.93,11.14,11.132,3.29857093]
[1672663306211,13.93,11.14,11.131,8.97]
[1672663306418,53.9295,11.139,11.131,8.97]
[1672663306632,5.0,11.138,11.131,8.97]
[1672663307477,5.0,11.138,11.132,3.2986424]
[1672663310945,5.0,11.138,11.131,8.97]
[1672663311252,5.0,11.135,11.128,8.91]
[1672663312096,5.0,11.135,11.129,3.29888973]
[1672663313990,8.97,11.136,11.129,3.29888973]
[1672663318195,8.97,11.137,11.129,12.18888973]
[1672663318508,5.0,11.136,11.129,12.18888973]
[1672663318719,5.0,11.136,11.13,3.29888973]
[1672663320715,8.97,11.137,11.13,3.29888973]
[1672663324079,5.0,11.136,11.13,3.29888973]
[1672663324495,4.87994184,11.136,11.13,3.29888973]
[1672663325656,8.97,11.137,11.13,3.29888973]
[1672663326074,5.0,11.136,11.13,3.29888973]
[1672663327335,8.97,11.137,11.13,3.29888973]
[1672663335530,8.97,11.137,11.129,8.89]
[1672663335739,13.99,11.138,11.13,8.9]
[1672663336158,8.99,11.138,11.13,8.9]
[1672663340467,8.99,11.132,11.117,5.8578]
[1672663340674,8.99,11.132,11.113,85.94]
[1672663340675,5.0,11.131,11.123,8.93]
[1672663340886,58.9924,11.131,11.123,8.93]
[1672663342566,53.9924,11.131,11.123,8.93]
[1672663343409,5.0,11.13,11.123,8.93]
[1672663345512,8.99,11.129,11.121,8.92]
[1672663345722,5.0,11.128,11.121,8.92]
[1672663348143,8.99,11.129,11.121,8.92]
[1672663349928,8.99,11.128,11.119,8.92]
[1672663350136,5.0,11.127,11.119,8.92]
[1672663352450,8.99,11.122,11.103,36.03]
[1672663352756,5.0,11.121,11.114,8.92]
[1672663352972,13.9,11.121,11.113,58.9]
[1672663353181,13.9,11.121,11.113,8.9]
[1672663353392,8.99,11.12,11.111,8.99]
[1672663353602,5.0,11.118,11.11,8.9]
[1672663354759,8.95,11.116,11.107,8.99]
[1672663354967,5.0,11.118,11.111,8.9]
[1672663355283,5.0,11.118,11.11,8.92]
[1672663357280,13.99,11.118,11.109,8.9]
[1672663357700,8.99,11.116,11.107,8.92]
[1672663358020,5.0,11.115,11.107,8.92]
[1672663358223,5.0,11.115,11.108,3.30519151]
[1672663359175,8.99,11.116,11.108,3.30519151]
[1672663360015,13.99,11.115,11.108,3.30519151]
[1672663360219,5.0,11.114,11.108,3.30519151]
[1672663360751,5.0,11.114,11.107,3.30519151]
[1672663360968,5.0,11.114,11.106,8.99]
[1672663361481,5.0,11.114,11.107,3.30540837]
[1672663361906,14.0,11.115,11.107,3.30540837]
[1672663361907,9.0,11.117,11.108,9.03]
[1672663362115,5.0,11.116,11.108,9.03]
[1672663362322,5.0,11.116,11.11,9.03]
[1672663362958,5.0,11.118,11.11,9.03]
[1672663363377,14.03,11.12,11.112,9.03]
[1672663363582,0.11897125,11.119,11.112,9.03]
[1672663363797,0.11897125,11.119,11.116,9.03]
[1672663364009,0.11897125,11.122,11.117,9.03]
[1672663364219,0.11897125,11.122,11.118,5.0]
[1672663364526,0.11897125,11.122,11.117,9.03]
[1672663367159,8.97,11.126,11.122,0.08731646]
[1672663380505,8.97,11.125,11.122,0.08731646]
[1672663380711,5.0,11.124,11.122,0.08731646]
[1672663382391,5.0,11.124,11.117,9.03]
[1672663382601,5.0,11.124,11.116,0.1198189]
[1672663382818,9.03,11.123,11.116,0.1198189]
[1672663383027,5.0,11.122,11.116,0.1198189]
[1672663386183,9.03,11.123,11.116,0.1198189]
[1672663390176,8.99,11.125,11.116,9.1498189]
[1672663390386,5.0,11.124,11.116,9.1498189]
[1672663390593,5.0,11.124,11.116,9.1298189]
[1672663393221,59.5017,11.125,11.116,9.1298189]
[1672663393951,59.5017,11.125,11.116,9.01]
[1672663395006,5.0,11.124,11.116,9.01]
[1672663397316,59.5017,11.125,11.116,9.01]
[1672663401626,5.0,11.124,11.116,9.01]
[1672663402258,9.01,11.123,11.115,9.01]
[1672663402467,5.0,11.122,11.115,9.01]
[1672663405095,9.01,11.123,11.115,9.01]
[1672663411086,50.4917,11.125,11.118,9.0]
[1672663416440,50.4917,11.125,11.117,8.93]
[1672663430520,50.4917,11.125,11.118,8.98]
[1672663434723,9.01,11.123,11.115,8.92]
[1672663434931,5.0,11.122,11.115,8.92]
[1672663436924,9.01,11.123,11.115,8.92]
[1672663437350,9.01,11.121,11.113,9.06955877]
[1672663437561,5.0,11.12,11.113,9.06955877]
[1672663437771,9.01,11.116,11.113,0.11955877]
[1672663437976,5.0,11.115,11.107,8.93]
[1672663438298,5.0,11.115,11.108,3.3056741]
[1672663438506,5.0,11.115,11.107,8.93]
[1672663438927,5.0,11.115,11.108,3.30573089]
[1672663439347,9.01,11.116,11.107,8.93]
[1672663440715,9.01,11.116,11.108,3.30577266]
[1672663441136,9.01,11.116,11.107,8.93]
[1672663444287,9.01,11.116,11.108,3.30581863]
[1672663450589,9.01,11.117,11.108,12.22581863]
[1672663450904,5.0,11.116,11.108,12.22581863]
[1672663451120,5.0,11.116,11.108,8.92]
[1672663452063,9.01,11.113,11.105,8.92]
[1672663452274,5.0,11.112,11.105,8.92]